lending/lending_fUSD_20240112
["ID","MTS","AMOUNT","RATE_DAILY","PERIOD"]
[311344448,1705065102551,-500.0,0.00025053,2]
[311344449,1705065102561,-1294.29,0.00025053,2]
[311344450,1705065102571,-984.37,0.00025053,2]
[311344451,1705065102581,-675.45,0.00025053,2]
[311344452,1705065102591,-1709.12,0.00025053,2]
[311344453,1705065102605,-191.4,0.00025053,2]
[311344454,1705065102615,-937.07,0.00025053,2]
[311344455,1705065102625,-2370.13,0.00025053,2]
[311344456,1705065102635,-793.03,0.00025053,2]
[311344457,1705065102646,-786.71,0.00025053,2]
[311344458,1705065102656,-1074.66,0.00025053,2]
[311344459,1705065102666,-2000.06,0.00025053,2]
[311344460,1705065102677,-3928.94,0.00025053,2]
[311344461,1705065102687,-1033.75,0.00025053,2]
[311344462,1705065102698,-874.55,0.00025053,2]
[311344463,1705065102708,-1304.48,0.00025053,2]
[311344464,1705065102721,-6963.0,0.00025053,2]
[311344465,1705065102731,-1048.12,0.00025053,2]
[311344466,1705065102741,-500.0,0.00025053,2]
[311344467,1705065102751,-500.0,0.00025053,2]
[311344468,1705065102762,-1205.23,0.00025053,2]
[311344469,1705065102772,-500.0,0.00025053,2]
[311344470,1705065102782,-736.05,0.00025053,2]
[311344471,1705065102793,-9796.43,0.00025053,2]
[311344472,1705065102804,-500.0,0.00025053,2]
[311344473,1705065102815,-2056.42,0.00025053,2]
[311344474,1705065102826,-500.0,0.00025053,2]
[311344475,1705065102838,-600.05,0.00025053,2]
[311344476,1705065102848,-1076.15,0.00025053,2]
[311344477,1705065102858,-500.0,0.00025053,2]
[311344478,1705065102868,-1891.13,0.00025053,2]
[311344479,1705065102879,-500.0,0.00025053,2]
[311344480,1705065102889,-2556.24,0.00025053,2]
[311344481,1705065102899,-750.14,0.00025053,2]
[311344482,1705065102909,-2721.6,0.00025053,2]
[311344483,1705065102920,-884.19,0.00025053,2]
[311344484,1705065102930,-2018.21,0.00025053,2]
[311344485,1705065102940,-2134.94,0.00025053,2]
[311344486,1705065102951,-500.0,0.00025053,2]
[311344487,1705065102961,-1493.07,0.00025053,2]
[311344488,1705065102974,-1084.3,0.00025053,2]
[311344489,1705065102984,-612.02,0.00025053,2]
[311344490,1705065102994,-500.0,0.00025053,2]
[311344491,1705065103004,-5673.19,0.00025053,2]
[311344492,1705065103015,-500.0,0.00025053,2]
[311344493,1705065103024,-1028.9,0.00025053,2]
[311344494,1705065103035,-2233.34,0.00025053,2]
[311344495,1705065103044,-710.28,0.00025053,2]
[311344496,1705065103054,-500.0,0.00025053,2]
[311344497,1705065103063,-500.0,0.00025056,2]
[311344498,1705065103073,-500.0,0.00025056,2]
[311344499,1705065103082,-500.0,0.00025056,2]
[311344500,1705065103092,-1431.33,0.00025056,2]
[311344501,1705065103102,-500.0,0.00025056,2]
[311344502,1705065103111,-500.0,0.00025056,2]
[311344503,1705065103122,-500.0,0.00025056,2]
[311344504,1705065103131,-236.93489103,0.00025056,2]
[311344505,1705065103141,-549.18880413,0.00025056,2]
[311344506,1705065103150,-500.0,0.00025056,2]
[311344507,1705065103160,-500.0,0.00025056,2]
[311344508,1705065103170,-500.0,0.00025056,2]
[311344509,1705065103179,-500.0,0.00025056,2]
[311344510,1705065103189,-204.86,0.00025056,2]
[311344511,1705065103199,-320.68,0.00025056,2]
[311344512,1705065103208,-526.28,0.00025056,2]
[311344513,1705065103219,-500.0,0.00025056,2]
[311344514,1705065103229,-500.0,0.00025056,2]
[311344515,1705065103238,-500.0,0.00025056,2]
[311344516,1705065103248,-500.0,0.00025056,2]
[311344517,1705065103257,-500.0,0.00025056,2]
[311344518,1705065103268,-485.81100029,0.00025056,2]
[311344519,1705065103280,-500.0,0.00025056,2]
[311344520,1705065103290,-500.0,0.00025056,2]
[311344521,1705065103300,-233.19591098,0.00025056,2]
[311344522,1705065103310,-500.0,0.00025056,2]
[311344523,1705065103319,-543.44,0.00025056,2]
[311344524,1705065103329,-500.0,0.00025056,2]
[311344525,1705065103339,-500.0,0.00025056,2]
[311344526,1705065103348,-500.0,0.00025056,2]
[311344527,1705065103359,-500.0,0.00025056,2]
[311344528,1705065103369,-500.0,0.00025056,2]
[311344529,1705065103379,-500.0,0.00025056,2]
[311344530,1705065103389,-553.95,0.00025056,2]
[311344531,1705065103398,-500.0,0.00025056,2]
[311344532,1705065103409,-516.33,0.00025056,2]
[311344533,1705065103419,-586.6,0.00025056,2]
[311344534,1705065103431,-500.0,0.00025056,2]
[311344535,1705065103441,-627.59432246,0.00025056,2]
[311344536,1705065103451,-452.4705694,0.00025056,2]
[311344537,1705065103462,-500.0,0.00025056,2]
[311344538,1705065103472,-500.0,0.00025056,2]
[311344539,1705065103482,-515.42,0.00025056,2]
[311344540,1705065103492,-500.0,0.00025056,2]
[311344541,1705065103502,-500.0,0.00025056,2]
[311344542,1705065103512,-188.26,0.00025056,2]
[311344543,1705065103524,-592.8,0.00025056,2]
[311344544,1705065103534,-500.0,0.00025056,2]
[311344545,1705065103543,-500.0,0.00025056,2]
[311344546,1705065103553,-500.0,0.00025056,2]
[311344547,1705065103563,-500.0,0.00025056,2]
[311344548,1705065103573,-500.0,0.00025056,2]
[311344549,1705065103584,-170.04,0.00025056,2]
[311344550,1705065103594,-205.17465999,0.00025056,2]
[311344551,1705065103604,-150.0,0.00025056,2]
[311344552,1705065103614,-500.0,0.00025056,2]
[311344553,1705065103624,-500.0,0.00025056,2]
[311344554,1705065103636,-500.0,0.00025056,2]
[311344555,1705065103646,-500.0,0.00025056,2]
[311344556,1705065103656,-500.0,0.00025056,2]
[311344557,1705065103666,-500.0,0.00025056,2]
[311344558,1705065103676,-500.0,0.00025056,2]
[311344559,1705065103686,-489.20500266,0.00025056,2]
[311344560,1705065103695,-500.0,0.00025056,2]
[311344561,1705065103706,-572.59,0.00025056,2]
[311344562,1705065103716,-500.0,0.00025056,2]
[311344563,1705065103933,-535.83,0.00025056,2]
[311344564,1705065103943,-268.71120084,0.00025056,2]
[311344565,1705065103952,-500.0,0.00025056,2]
[311344566,1705065103961,-157.5,0.00025056,2]
[311344567,1705065103971,-226.78951639,0.00025056,2]
[311344568,1705065103981,-500.0,0.00025056,2]
[311344569,1705065103990,-500.0,0.00025056,2]
[311344570,1705065103999,-611.41,0.00025056,2]
[311344571,1705065104009,-500.0,0.00025056,2]
[311344572,1705065104018,-1479.42,0.00025056,2]
[311344573,1705065104027,-500.0,0.00025056,2]
[311344574,1705065104037,-1130.95,0.00025056,2]
[311344575,1705065104046,-917.05,0.00025056,2]
[311344576,1705065104055,-3574.26,0.00025056,2]
[311344577,1705065104064,-500.0,0.00025056,2]
[311344578,1705065104073,-500.0,0.00025056,2]
[311344579,1705065104082,-526.02,0.00025056,2]
[311344580,1705065104092,-500.0,0.00025056,2]
[311344581,1705065104101,-500.0,0.00025056,2]
[311344582,1705065104111,-500.0,0.00025056,2]
[311344583,1705065104120,-514.03,0.00025056,2]
[311344584,1705065104130,-500.0,0.00025056,2]
[311344585,1705065104139,-1199.16,0.00025056,2]
[311344586,1705065104148,-500.0,0.00025056,2]
[311344587,1705065104158,-500.0,0.00025056,2]
[311344588,1705065104167,-809.87,0.00025056,2]
[311344589,1705065104177,-500.0,0.00025056,2]
[311344590,1705065104187,-826.13,0.00025056,2]
[311344591,1705065104202,-629.29,0.00025056,2]
[311344592,1705065104212,-2053.17,0.00025056,2]
[311344593,1705065104223,-500.0,0.00025056,2]
[311344594,1705065104232,-500.0,0.00025056,2]
[311344595,1705065104241,-713.26,0.00025056,2]
[311344596,1705065104251,-500.0,0.00025056,2]
[311344597,1705065104260,-896.29,0.00025056,2]
[311344598,1705065104270,-1112.52,0.00025056,2]
[311344599,1705065104279,-500.0,0.00025056,2]
[311344600,1705065104289,-1157.27,0.00025056,2]
[311344601,1705065104299,-574.98,0.00025056,2]
[311344602,1705065104309,-597.76,0.00025056,2]
[311344603,1705065104318,-500.0,0.00025056,2]
[311344604,1705065104327,-1688.31,0.00025056,2]
[311344605,1705065104338,-500.0,0.00025056,2]
[311344606,1705065104348,-500.0,0.00025056,2]
[311344607,1705065104357,-500.0,0.00025056,2]
[311344608,1705065104368,-974.33,0.00025056,2]
[311344609,1705065104377,-388.18317102,0.00025056,2]
[311344610,1705065104387,-644.03,0.00025056,2]
[311344611,1705065104397,-500.0,0.00025056,2]
[311344612,1705065104407,-500.0,0.00025056,2]
[311344613,1705065104416,-500.0,0.00025056,2]
[311344614,1705065104425,-500.0,0.00025056,2]
[311344615,1705065104435,-791.75,0.00025056,2]
[311344616,1705065104444,-515.56,0.00025056,2]
[311344617,1705065104455,-2017.32,0.00025056,2]
[311344618,1705065104465,-535.6,0.00025056,2]
[311344619,1705065104477,-705.71,0.00025056,2]
[311344620,1705065104486,-655.0,0.00025056,2]
[311344621,1705065104496,-1374.63,0.00025056,2]
[311344622,1705065104506,-1550.52,0.00025056,2]
[311344623,1705065104517,-500.0,0.00025056,2]
[311344624,1705065104527,-1473.58,0.00025056,2]
[311344625,1705065104537,-805.25,0.00025056,2]
[311344626,1705065104547,-500.0,0.00025056,2]
[311344627,1705065104557,-1112.34,0.00025056,2]
[311344628,1705065104567,-943.87,0.00025056,2]
[311344629,1705065104577,-228.14,0.00025056,2]
[311344630,1705065104587,-565.25,0.00025056,2]
[311344631,1705065104597,-500.0,0.00025056,2]
[311344632,1705065104608,-500.0,0.00025056,2]
[311344633,1705065104617,-3783.76,0.00025056,2]
[311344634,1705065104628,-500.0,0.00025056,2]
[311344635,1705065104637,-250.76,0.00025056,2]
[311344636,1705065104647,-500.0,0.00025056,2]
[311344637,1705065104657,-500.0,0.00025057,2]
[311344638,1705065104667,-500.0,0.00025057,2]
[311344639,1705065104677,-500.0,0.00025057,2]
[311344640,1705065104686,-500.0,0.00025057,2]
[311344641,1705065104696,-527.36,0.00025057,2]
[311344642,1705065104705,-396.91367374,0.00025057,2]
[311344643,1705065104714,-500.0,0.00025057,2]
[311344644,1705065104725,-500.0,0.00025057,2]
[311344645,1705065104734,-511.53,0.00025057,2]
[311344646,1705065104744,-500.0,0.00025057,2]
[311344647,1705065104754,-469.26674214,0.00025057,2]
[311344648,1705065104765,-500.0,0.00025057,2]
[311344649,1705065104775,-500.0,0.00025057,2]
[311344650,1705065104784,-500.0,0.00025057,2]
[311344651,1705065104794,-592.66,0.00025057,2]
[311344652,1705065104803,-500.0,0.00025057,2]
[311344653,1705065104813,-500.0,0.00025057,2]
[311344654,1705065104824,-500.0,0.00025057,2]
[311344655,1705065104834,-500.0,0.00025057,2]
[311344656,1705065104844,-500.0,0.00025057,2]
[311344657,1705065104853,-284.52378312,0.00025057,2]
[311344658,1705065104863,-500.0,0.00025057,2]
[311344659,1705065104874,-500.0,0.00025057,2]
[311344660,1705065104884,-500.0,0.00025057,2]
[311344661,1705065104893,-500.0,0.00025057,2]
[311344662,1705065104904,-500.0,0.00025057,2]
[311344663,1705065104913,-500.0,0.00025057,2]
[311344664,1705065104922,-500.0,0.00025057,2]
[311344665,1705065104932,-192.77839147,0.00025057,2]
[311344666,1705065104941,-557.22,0.00025057,2]
[311344667,1705065104951,-500.0,0.00025057,2]
[311344668,1705065104961,-500.0,0.00025057,2]
[311344669,1705065104970,-500.0,0.00025057,2]
[311344670,1705065104980,-506.67,0.00025057,2]
[311344671,1705065104989,-555.88,0.00025057,2]
[311344672,1705065104999,-500.0,0.00025057,2]
[311344673,1705065105008,-500.0,0.00025057,2]
[311344674,1705065105018,-500.0,0.00025057,2]
[311344675,1705065105028,-500.0,0.00025057,2]
[311344676,1705065105038,-500.0,0.00025057,2]
[311344677,1705065105049,-500.0,0.00025057,2]
[311344678,1705065105059,-500.0,0.00025057,2]
[311344679,1705065105069,-500.0,0.00025057,2]
[311344680,1705065105079,-500.0,0.00025057,2]
[311344681,1705065105090,-710.1,0.00025057,2]
[311344682,1705065105099,-499.31648092,0.00025057,2]
[311344683,1705065105109,-638.54006966,0.00025057,2]
[311344684,1705065105119,-500.0,0.00025057,2]
[311344685,1705065105128,-500.0,0.00025057,2]
[311344686,1705065105137,-500.0,0.00025057,2]
[311344687,1705065105147,-500.0,0.00025057,2]
[311344688,1705065105157,-500.0,0.00025057,2]
[311344689,1705065105166,-1022.92,0.00025057,2]
[311344690,1705065105176,-1065.11,0.00025057,2]
[311344691,1705065105186,-973.85,0.00025057,2]
[311344692,1705065105196,-596.64,0.00025057,2]
[311344693,1705065105206,-1316.49,0.00025057,2]
[311344694,1705065105216,-565.15,0.00025057,2]
[311344695,1705065105227,-4908.84,0.00025057,2]
[311344696,1705065105237,-567.77,0.00025057,2]
[311344697,1705065105246,-500.0,0.00025057,2]
[311344698,1705065105256,-1555.67,0.00025057,2]
[311344699,1705065105265,-1400.6,0.00025057,5]
[311344700,1705065105275,-1433.76,0.00025057,2]
[311344701,1705065105285,-1359.51,0.00025057,2]
[311344702,1705065105294,-647.67,0.00025057,2]
[311344703,1705065105303,-756.74,0.00025057,2]
[311344704,1705065105313,-1876.2,0.00025057,2]
[311344705,1705065105323,-1309.3,0.00025057,2]
[311344706,1705065105332,-937.63,0.00025057,2]
[311344707,1705065105342,-2066.36,0.00025057,2]
[311344708,1705065105353,-3090.41,0.00025057,2]
[311344709,1705065105364,-660.9,0.00025057,2]
[311344710,1705065105374,-500.0,0.00025057,2]
[311344711,1705065105385,-500.0,0.00025057,2]
[311344712,1705065105395,-500.0,0.00025057,2]
[311344713,1705065105405,-500.0,0.00025057,2]
[311344714,1705065105415,-1935.88,0.00025057,2]
[311344715,1705065105424,-505.19,0.00025057,2]
[311344716,1705065105434,-527.44,0.00025057,2]
[311344717,1705065105445,-500.0,0.00025057,2]
[311344718,1705065105456,-500.0,0.00025057,2]
[311344719,1705065105465,-1258.22,0.00025057,2]
[311344720,1705065105476,-500.0,0.00025057,2]
[311344721,1705065105485,-500.0,0.00025057,2]
[311344722,1705065105495,-500.0,0.00025057,2]
[311344723,1705065105504,-620.89,0.00025057,2]
[311344724,1705065105514,-500.0,0.00025057,2]
[311344725,1705065105523,-993.03,0.00025057,2]
[311344726,1705065105533,-724.59,0.00025057,2]
[311344727,1705065105542,-153.84,0.00025132,2]
[311344728,1705065105552,-500.0,0.00025268,2]
[311344729,1705065105562,-1007.6671,0.00025299,2]
[311344730,1705065105571,-1095.03,0.00025327,2]
[311344731,1705065105580,-2336.53,0.00025327,5]
[311344732,1705065105589,-660.44,0.00025327,2]
[311344733,1705065105600,-4983.08,0.00025327,2]
[311344734,1705065105610,-500.0,0.00025327,2]
[311344735,1705065105619,-1968.89,0.00025327,2]
[311344736,1705065105628,-6835.31,0.00025327,2]
[311344737,1705065105637,-14321.2,0.00025327,2]
[311344738,1705065105647,-549.3,0.00025327,2]
[311344739,1705065105657,-619.15,0.00025327,2]
[311344740,1705065105666,-1403.82,0.00025327,2]
[311344741,1705065105676,-722.98,0.00025327,2]
[311344742,1705065105685,-500.0,0.00025327,2]
[311344743,1705065105695,-607.61,0.00025327,2]
[311344744,1705065105704,-510.07,0.00025327,2]
[311344745,1705065105714,-749.86,0.00025327,2]
[311344746,1705065105724,-3048.94,0.00025327,2]
[311344747,1705065105733,-500.0,0.00025327,2]
[311344748,1705065105743,-500.0,0.00025327,2]
[311344749,1705065105753,-1294.29,0.00025327,2]
[311344750,1705065105762,-984.37,0.00025327,2]
[311344751,1705065105772,-675.45,0.00025327,2]
[311344752,1705065105782,-1709.12,0.00025327,2]
[311344753,1705065105791,-937.07,0.00025327,2]
[311344754,1705065105801,-2370.13,0.00025327,2]
[311344755,1705065105810,-793.03,0.00025327,2]
[311344756,1705065105822,-786.71,0.00025327,2]
[311344757,1705065105833,-1074.66,0.00025327,2]
[311344758,1705065105843,-2000.06,0.00025327,2]
[311344759,1705065105854,-3928.94,0.00025327,2]
[311344760,1705065105864,-1033.75,0.00025327,2]
[311344761,1705065105875,-874.55,0.00025327,2]
[311344762,1705065105885,-1304.48,0.00025327,2]
[311344763,1705065105894,-6963.0,0.00025327,2]
[311344764,1705065105904,-1048.12,0.00025327,2]
[311344765,1705065105914,-500.0,0.00025327,2]
[311344766,1705065105924,-500.0,0.00025327,2]
[311344767,1705065105933,-1205.23,0.00025327,2]
[311344768,1705065105942,-500.0,0.00025327,2]
[311344769,1705065105952,-736.05,0.00025327,2]
[311344770,1705065105962,-9796.43,0.00025327,2]
[311344771,1705065105972,-500.0,0.00025327,2]
[311344772,1705065105981,-2056.42,0.00025327,2]
[311344773,1705065105991,-500.0,0.00025327,2]
[311344774,1705065106000,-600.05,0.00025327,2]
[311344775,1705065106010,-1076.15,0.00025327,2]
[311344776,1705065106019,-500.0,0.00025327,2]
[311344777,1705065106029,-1891.13,0.00025327,2]
[311344778,1705065106038,-500.0,0.00025327,2]
[311344779,1705065106048,-2556.24,0.00025327,2]
[311344780,1705065106058,-750.14,0.00025327,2]
[311344781,1705065106068,-2721.6,0.00025327,2]
[311344782,1705065106078,-884.19,0.00025327,2]
[311344783,1705065106088,-2018.21,0.00025327,2]
[311344784,1705065106097,-2134.94,0.00025327,2]
[311344785,1705065106107,-500.0,0.00025327,2]
[311344786,1705065106117,-1493.07,0.00025327,2]
[311344787,1705065106125,-1084.3,0.00025327,2]
[311344788,1705065106135,-612.02,0.00025327,2]
[311344789,1705065106144,-500.0,0.00025327,2]
[311344790,1705065106154,-5673.19,0.00025327,2]
[311344791,1705065106163,-500.0,0.00025327,2]
[311344792,1705065106173,-1028.9,0.00025327,2]
[311344793,1705065106182,-2233.34,0.00025327,2]
[311344794,1705065106192,-710.28,0.00025327,2]
[311344795,1705065106201,-500.0,0.00025327,2]
[311344796,1705065106210,-500.0,0.0002533,2]
[311344797,1705065106220,-500.0,0.0002533,2]
[311344798,1705065106292,-500.0,0.0002533,2]
[311344799,1705065106302,-1431.33,0.0002533,2]
[311344800,1705065106311,-500.0,0.0002533,2]
[311344801,1705065106320,-500.0,0.0002533,2]
[311344802,1705065106329,-500.0,0.0002533,2]
[311344803,1705065106365,-500.0,0.0002533,2]
[311344804,1705065106375,-500.0,0.0002533,2]
[311344805,1705065106384,-500.0,0.0002533,2]
[311344806,1705065106393,-500.0,0.0002533,2]
[311344807,1705065106402,-526.28,0.0002533,2]
[311344808,1705065106411,-500.0,0.0002533,2]
[311344809,1705065106420,-500.0,0.0002533,2]
[311344810,1705065106429,-500.0,0.0002533,2]
[311344811,1705065106438,-500.0,0.0002533,2]
[311344812,1705065106447,-500.0,0.0002533,2]
[311344813,1705065106456,-500.0,0.0002533,2]
[311344814,1705065106466,-500.0,0.0002533,2]
[311344815,1705065106476,-303.84063171,0.0002533,2]
[311344816,1705065106485,-543.44,0.0002533,2]
[311344817,1705065106494,-500.0,0.0002533,2]
[311344818,1705065106504,-500.0,0.0002533,2]
[311344819,1705065106513,-500.0,0.0002533,2]
[311344820,1705065106523,-500.0,0.0002533,2]
[311344821,1705065106532,-376.1767581,0.0002533,2]
[311344822,1705065106541,-500.0,0.0002533,2]
[311344823,1705065106550,-553.95,0.0002533,2]
[311344824,1705065106559,-500.0,0.0002533,2]
[311344825,1705065106568,-516.33,0.0002533,2]
[311344826,1705065106577,-586.6,0.0002533,2]
[311344827,1705065106587,-500.0,0.0002533,2]
[311344828,1705065106596,-500.0,0.0002533,2]
[311344829,1705065106606,-500.0,0.0002533,2]
[311344830,1705065106615,-515.42,0.0002533,2]
[311344831,1705065106624,-500.0,0.0002533,2]
[311344832,1705065106633,-500.0,0.0002533,2]
[311344833,1705065106642,-592.8,0.0002533,2]
[311344834,1705065106652,-500.0,0.0002533,2]
[311344835,1705065106661,-500.0,0.0002533,2]
[311344836,1705065106670,-500.0,0.0002533,2]
[311344837,1705065106679,-500.0,0.0002533,2]
[311344838,1705065106688,-500.0,0.0002533,2]
[311344839,1705065106697,-150.0,0.0002533,2]
[311344840,1705065106706,-500.0,0.0002533,2]
[311344841,1705065106715,-500.0,0.0002533,2]
[311344842,1705065106724,-500.0,0.0002533,2]
[311344843,1705065106733,-500.0,0.0002533,2]
[311344844,1705065106742,-500.0,0.0002533,2]
[311344845,1705065106751,-500.0,0.0002533,2]
[311344846,1705065106760,-298.7455152,0.0002533,2]
[311344847,1705065106769,-546.64774144,0.0002533,2]
[311344848,1705065106778,-572.59,0.0002533,2]
[311344849,1705065106787,-500.0,0.0002533,2]
[311344850,1705065106797,-535.83,0.0002533,2]
[311344851,1705065106806,-500.0,0.0002533,2]
[311344852,1705065106816,-204.84384685,0.0002533,2]
[311344853,1705065106828,-500.0,0.0002533,2]
[311344854,1705065106837,-611.41,0.0002533,2]
[311344855,1705065106846,-1479.42,0.0002533,2]
[311344856,1705065106856,-500.0,0.0002533,2]
[311344857,1705065106865,-500.0,0.0002533,2]
[311344858,1705065106874,-1130.95,0.0002533,2]
[311344859,1705065106884,-917.05,0.0002533,2]
[311344860,1705065106893,-3574.26,0.0002533,2]
[311344861,1705065106902,-293.48401869,0.0002533,2]
[311344862,1705065106911,-500.0,0.0002533,2]
[311344863,1705065106920,-526.02,0.0002533,2]
[311344864,1705065106929,-500.0,0.0002533,2]
[311344865,1705065106938,-633.85247864,0.0002533,2]
[311344866,1705065106947,-500.0,0.0002533,2]
[311344867,1705065106956,-514.03,0.0002533,2]
[311344868,1705065106965,-500.0,0.0002533,2]
[311344869,1705065106975,-1199.16,0.0002533,2]
[311344870,1705065106985,-500.0,0.0002533,2]
[311344871,1705065106994,-500.0,0.0002533,2]
[311344872,1705065107003,-809.87,0.0002533,2]
[311344873,1705065107013,-500.0,0.0002533,2]
[311344874,1705065107022,-826.13,0.0002533,2]
[311344875,1705065107031,-629.29,0.0002533,2]
[311344876,1705065107042,-2053.17,0.0002533,2]
[311344877,1705065107051,-500.0,0.0002533,2]
[311344878,1705065107060,-500.0,0.0002533,2]
[311344879,1705065107070,-713.26,0.0002533,2]
[311344880,1705065107079,-152.4385487,0.0002533,2]
[311344881,1705065107089,-896.29,0.0002533,2]
[311344882,1705065107099,-1112.52,0.0002533,2]
[311344883,1705065107109,-500.0,0.0002533,2]
[311344884,1705065107119,-1157.27,0.0002533,2]
[311344885,1705065107128,-574.98,0.0002533,2]
[311344886,1705065107138,-597.76,0.0002533,2]
[311344887,1705065107147,-414.71631862,0.0002533,2]
[311344888,1705065107157,-1688.31,0.0002533,2]
[311344889,1705065107167,-500.0,0.0002533,2]
[311344890,1705065107177,-500.0,0.0002533,2]
[311344891,1705065107187,-432.28,0.0002533,2]
[311344892,1705065107197,-974.33,0.0002533,2]
[311344893,1705065107207,-644.03,0.0002533,2]
[311344894,1705065107216,-459.39671004,0.0002533,2]
[311344895,1705065107228,-500.0,0.0002533,2]
[311344896,1705065107237,-500.0,0.0002533,2]
[311344897,1705065107246,-500.0,0.0002533,2]
[311344898,1705065107257,-791.75,0.0002533,2]
[311344899,1705065107267,-2017.32,0.0002533,2]
[311344900,1705065107276,-535.6,0.0002533,2]
[311344901,1705065107286,-705.71,0.0002533,2]
[311344902,1705065107296,-655.0,0.0002533,2]
[311344903,1705065107305,-1374.63,0.0002533,2]
[311344904,1705065107315,-1550.52,0.0002533,2]
[311344905,1705065107326,-610.24206935,0.0002533,2]
[311344906,1705065107338,-1473.58,0.0002533,2]
[311344907,1705065107348,-805.25,0.0002533,2]
[311344908,1705065107358,-500.0,0.0002533,2]
[311344909,1705065107368,-1112.34,0.0002533,2]
[311344910,1705065107378,-943.87,0.0002533,2]
[311344911,1705065107387,-565.25,0.0002533,2]
[311344912,1705065107398,-628.47162855,0.0002533,2]
[311344913,1705065107407,-500.0,0.0002533,2]
[311344914,1705065107418,-3783.76,0.0002533,2]
[311344915,1705065107428,-500.0,0.0002533,2]
[311344916,1705065107437,-500.0,0.0002533,2]
[311344917,1705065107446,-500.0,0.00025331,2]
[311344918,1705065107455,-500.0,0.00025331,2]
[311344919,1705065107466,-500.0,0.00025331,2]
[311344920,1705065107475,-500.0,0.00025331,2]
[311344921,1705065107485,-527.36,0.00025331,2]
[311344922,1705065107494,-500.0,0.00025331,2]
[311344923,1705065107503,-500.0,0.00025331,2]
[311344924,1705065107513,-511.53,0.00025331,2]
[311344925,1705065107522,-500.0,0.00025331,2]
[311344926,1705065107531,-328.56204486,0.00025331,2]
[311344927,1705065107541,-500.0,0.00025331,2]
[311344928,1705065107550,-500.0,0.00025331,2]
[311344929,1705065107559,-592.66,0.00025331,2]
[311344930,1705065107569,-500.0,0.00025331,2]
[311344931,1705065107579,-500.0,0.00025331,2]
[311344932,1705065107589,-500.0,0.00025331,2]
[311344933,1705065107599,-500.0,0.00025331,2]
[311344934,1705065107609,-500.0,0.00025331,2]
[311344935,1705065107618,-500.0,0.00025331,2]
[311344936,1705065107627,-500.0,0.00025331,2]
[311344937,1705065107636,-500.0,0.00025331,2]
[311344938,1705065107645,-500.0,0.00025331,2]
[311344939,1705065107654,-203.4129333,0.00025331,2]
[311344940,1705065107663,-500.0,0.00025331,2]
[311344941,1705065107673,-500.0,0.00025331,2]
[311344942,1705065107682,-557.22,0.00025331,2]
[311344943,1705065107691,-500.0,0.00025331,2]
[311344944,1705065107700,-500.0,0.00025331,2]
[311344945,1705065107710,-500.0,0.00025331,2]
[311344946,1705065107719,-506.67,0.00025331,2]
[311344947,1705065107729,-555.88,0.00025331,2]